Workbook

Sheet 技１．（１）
A1: １．鉄 道
A3: （１） 鉄道及び軌道運転事故件数の推移
B5: ア． ＪＲ（旅客、貨物）
B7: 種類 | C7: 列車衝突 | D7: 列車脱線 | E7: 列車火災 | F7: 踏切障害 | G7: 道路障害 | H7: 人身障害 | I7: 物 損 | J7: 計 | K7: （列車走行キロ） | N7: 死傷者数
A8: 年度 | K8: 百万キロ当り
K9: の事故件数 | N9: （死亡者数）
A10: 元 | C10: 0 | D10: 0 | E10: 0 | F10: 4 | G10: 0 | H10: 3 | I10: 0 | J10: 7 | K10: （ | L10: 39881 | M10: ） | O10: 3
L11: 0.17 | N11: （ | O11: 1 | P11: ）
A12: ２ | C12: 0 | D12: 0 | E12: 0 | F12: 3 | G12: 0 | H12: 0 | I12: 0 | J12: 3 | K12: （ | L12: 38358 | M12: ） | O12: 1
L13: 0.08 | N13: （ | O13: 0 | P13: ）
A14: 3 | C14: 0 | D14: 0 | E14: 0 | F14: 4 | G14: 0 | H14: 2 | I14: 0 | J14: 6 | K14: （ | L14: 37175 | M14: ） | O14: 6
L15: 0.16 | N15: （ | O15: 4 | P15: ）
A16: 4 | C16: 0 | D16: 0 | E16: 0 | F16: 5 | G16: 0 | H16: 2 | I16: 0 | J16: 7 | K16: （ | L16: 37788 | M16: ） | O16: 6
L17: 0.19 | N17: （ | O17: 1 | P17: ）
A18: 5 | C18: 0 | D18: 0 | E18: 0 | F18: 5 | G18: 0 | H18: 2 | I18: 1 | J18: 8 | K18: （ | L18: 37953 | M18: ） | O18: 6
L19: 0.21 | N19: （ | O19: 1 | P19: ）
A20: 6 | C20: 0 | D20: 1 | E20: 0 | F20: 4 | G20: 0 | H20: 4 | I20: 0 | J20: 9 | K20: （ | L20: 37673 | M20: ） | O20: 6
L21: 0.24 | N21: （ | O21: 3 | P21: ）
A23: （注） | C23: １． 北海道運輸局資料による
C24: ２． 列車走行キロの単位 千キロ
C25: ３． 種類は、鉄道事故等報告規則による
B27: イ． ＪＲ以外の鉄道
B29: 種類 | C29: 列車衝突 | D29: 列車脱線 | E29: 列車火災 | F29: 踏切障害 | G29: 道路障害 | H29: 人身障害 | I29: 物 損 | J29: 計 | K29: （列車走行キロ） | N29: 死傷者数
A30: 年度 | K30: 百万キロ当り
K31: の事故件数 | N31: （死亡者数）
A32: =$A$10 -> 元 | C32: 0 | D32: 0 | E32: 0 | F32: 0 | G32: 0 | H32: 0 | I32: 0 | J32: 0 | K32: （ | L32: 6076 | M32: ） | O32: 0
L33: 0 | N33: （ | O33: 0 | P33: ）
A34: =$A$12 -> ２ | C34: 0 | D34: 0 | E34: 0 | F34: 0 | G34: 0 | H34: 0 | I34: 0 | J34: 0 | K34: （ | L34: 6049 | M34: ） | O34: 0
L35: 0 | N35: （ | O35: 0 | P35: ）
A36: =$A$14 -> 3 | C36: 0 | D36: 0 | E36: 0 | F36: 0 | G36: 0 | H36: 0 | I36: 0 | J36: 0 | K36: （ | L36: 6046 | M36: ） | O36: 0
L37: 0 | N37: （ | O37: 0 | P37: ）
A38: =$A$16 -> 4 | C38: 0 | D38: 0 | E38: 0 | F38: 0 | G38: 0 | H38: 0 | I38: 1 | J38: 1 | K38: （ | L38: 6051 | M38: ） | O38: 0
L39: 0.17 | N39: （ | O39: 0 | P39: ）
A40: =$A$18 -> 5 | C40: 0 | D40: 0 | E40: 0 | F40: 0 | G40: 0 | H40: 0 | I40: 0 | J40: 0 | K40: （ | L40: 6079 | M40: ） | O40: 0
L41: 0 | N41: （ | O41: 0 | P41: ）
A42: =$A$20 -> 6 | C42: 0 | D42: 0 | E42: 0 | F42: 0 | G42: 0 | H42: 0 | I42: 1 | J42: 1 | K42: （ | L42: 6085 | M42: ） | O42: 0
L43: 0.16 | N43: （ | O43: 0 | P43: ）
A44: （注） | C44: １． 北海道運輸局資料による
C45: ２． 列車走行キロの単位 千キロ
C46: ３． 種類は、鉄道事故等報告規則による
B51: ウ． 軌 道
B53: 種類 | C53: 車両衝突 | D53: 車両脱線 | E53: 車両火災 | F53: 踏切障害 | G53: 道路障害 | H53: 人身障害 | I53: 物 損 | J53: 計 | K53: （車両走行キロ） | N53: 死傷者数
A54: 年度 | K54: 百万キロ当り
K55: の事故件数 | N55: （死亡者数）
A56: =$A$10 -> 元 | C56: 0 | D56: 1 | E56: 0 | F56: 0 | G56: 3 | H56: 0 | I56: 0 | J56: 4 | K56: （ | L56: 1892 | M56: ） | O56: 5
L57: 2.11 | N57: （ | O57: 0 | P57: ）
A58: =$A$12 -> ２ | C58: 1 | D58: 0 | E58: 0 | F58: 0 | G58: 1 | H58: 0 | I58: 0 | J58: 2 | K58: （ | L58: 1805 | M58: ） | O58: 1
L59: 1.11 | N59: （ | O59: 0 | P59: ）
A60: =$A$14 -> 3 | C60: 0 | D60: 0 | E60: 0 | F60: 0 | G60: 3 | H60: 0 | I60: 1 | J60: 4 | K60: （ | L60: 1799 | M60: ） | O60: 6
L61: 2.22 | N61: （ | O61: 0 | P61: ）
A62: =$A$16 -> 4 | C62: 0 | D62: 2 | E62: 0 | F62: 0 | G62: 0 | H62: 0 | I62: 0 | J62: 2 | K62: （ | L62: 1708 | M62: ） | O62: 0
L63: 1.17 | N63: （ | O63: 0 | P63: ）
A64: =$A$18 -> 5 | C64: 0 | D64: 2 | E64: 0 | F64: 0 | G64: 3 | H64: 0 | I64: 0 | J64: 5 | K64: （ | L64: 1699 | M64: ） | O64: 10
L65: 2.94 | N65: （ | O65: 0 | P65: ）
A66: =$A$20 -> 6 | C66: 0 | D66: 0 | E66: 0 | F66: 0 | G66: 0 | H66: 0 | I66: 1 | J66: 1 | K66: （ | L66: 1695 | M66: ） | O66: 0
L67: 0.59 | N67: （ | O67: 0 | P67: ）
A69: （注） | C69: １． 北海道運輸局資料による
C70: ２． 車両走行キロの単位 千キロ
C71: ３． 種類は、軌道事故等報告規則による
B73: エ． 索 道
B75: 種類 | C75: 索条切断 | D75: 搬器落下 | E75: 搬器衝突 | F75: 搬器火災 | G75: 人身障害 | H75: 計 | I75: 死傷者数
A76: 年度
I77: （死亡者数）
A78: =$A$10 -> 元 | C78: 0 | D78: 0 | E78: 1 | F78: 0 | G78: 9 | H78: 10 | J78: 16
I79: （ | J79: 0 | K79: ）
A80: =$A$12 -> ２ | C80: 0 | D80: 0 | E80: 0 | F80: 0 | G80: 3 | H80: 3 | J80: 3
I81: （ | J81: 0 | K81: ）
A82: =$A$14 -> 3 | C82: 0 | D82: 0 | E82: 1 | F82: 0 | G82: 5 | H82: 6 | J82: 5
I83: （ | J83: 0 | K83: ）
A84: =$A$16 -> 4 | C84: 0 | D84: 0 | E84: 0 | F84: 0 | G84: 4 | H84: 4 | J84: 4
I85: （ | J85: 0 | K85: ）
A86: =$A$18 -> 5 | C86: 0 | D86: 1 | E86: 1 | F86: 0 | G86: 7 | H86: 9 | J86: 7
I87: （ | J87: 0 | K87: ）
A88: =$A$20 -> 6 | C88: 0 | D88: 0 | E88: 2 | F88: 0 | G88: 6 | H88: 8 | J88: 6
I89: （ | J89: 0 | K89: ）
A91: （注） | C91: １． 北海道運輸局資料による
C92: ２． 種類は、鉄道事故等報告規則による

Sheet 技１．（２）
A1: （２） 踏切安全対策進捗状況
B3: ア． 踏切道の推移 | X3: （単位：箇所）
D5: 年 度 | I5: ２ | M5: 3 | Q5: 4 | U5: 5 | Y5: 6
A6: 種 別
A7: Ｊ Ｒ | D7: 第１種 | I7: 1413 | M7: 1337 | Q7: 1331 | U7: 1304 | Y7: 1267
D8: 第２種 | I8: 0 | M8: 0 | Q8: 0 | U8: 0 | Y8: 0
D9: 第３種 | I9: 49 | M9: 43 | Q9: 43 | U9: 42 | Y9: 39
D10: 第４種 | I10: 98 | M10: 83 | Q10: 82 | U10: 71 | Y10: 71
D11: 計 | I11: 1560 | M11: 1463 | Q11: 1456 | U11: 1417 | Y11: =Y7+Y8+Y9+Y10 -> 1377
A12: ＪＲ以外 | D12: 第１種 | I12: 41 | M12: 41 | Q12: 41 | U12: 41 | Y12: 41
D13: 第２種 | I13: 0 | M13: 0 | Q13: 0 | U13: 0 | Y13: 0
D14: 第３種 | I14: 3 | M14: 3 | Q14: 3 | U14: 3 | Y14: 3
D15: 第４種 | I15: 3 | M15: 3 | Q15: 3 | U15: 3 | Y15: 3
D16: 計 | I16: 47 | M16: 47 | Q16: 47 | U16: 47 | Y16: =Y12+Y13+Y14+Y15 -> 47
A17: 合 計 | D17: 第１種 | I17: 1454 | M17: 1378 | Q17: 1372 | U17: 1345 | Y17: =SUM(Y7,Y12) -> 1308
D18: 第２種 | I18: 0 | M18: 0 | Q18: 0 | U18: 0 | Y18: =SUM(Y8,Y13) -> 0
D19: 第３種 | I19: 52 | M19: 46 | Q19: 46 | U19: 45 | Y19: =SUM(Y9,Y14) -> 42
D20: 第４種 | I20: 101 | M20: 86 | Q20: 85 | U20: 74 | Y20: =SUM(Y10,Y15) -> 74
D21: 計 | I21: 1607 | M21: 1510 | Q21: 1503 | U21: 1464 | Y21: =SUM(Y11,Y16) -> 1424
A23: （注） | C23: １． | D23: 踏切道数は各年３月３１日の現況
C24: ２． | D24: 北海道運輸局資料による
C25: ３． | D25: 平成２７年度にＪＲ江差線が道南いさりび鉄道株式会社に移行
B27: イ． 踏切道の改良実績 | X27: （単位：箇所）
D29: 年 度 | I29: =$I$5 -> ２ | M29: =$M$5 -> 3 | Q29: =$Q$5 -> 4 | U29: =$U$5 -> 5 | Y29: =$Y$5 -> 6
A30: 種 別
A31: 立体交差 | D31: Ｊ Ｒ | I31: 0 | M31: 0 | Q31: 1 | U31: 0 | Y31: 0
D32: Ｊ Ｒ 以 外 | I32: 0 | M32: 0 | Q32: 0 | U32: 0 | Y32: 0
D33: 計 | I33: 0 | M33: 0 | Q33: 1 | U33: 0 | Y33: =SUM(Y31:AB32) -> 0
A34: 構造改良 | D34: Ｊ Ｒ | I34: 3 | M34: 1 | Q34: 1 | U34: 2 | Y34: 0
D35: Ｊ Ｒ 以 外 | I35: 1 | M35: 1 | Q35: 0 | U35: 0 | Y35: 0
D36: 計 | I36: 4 | M36: 2 | Q36: 1 | U36: 2 | Y36: =SUM(Y34:AB35) -> 0
A37: 保安設備 | D37: Ｊ Ｒ | I37: 1 | M37: 1 | Q37: 0 | U37: 1 | Y37: 1
D38: Ｊ Ｒ 以 外 | I38: 0 | M38: 0 | Q38: 0 | U38: 0 | Y38: 0
D39: 計 | I39: 1 | M39: 1 | Q39: 0 | U39: 1 | Y39: =SUM(Y37:AB38) -> 1
A41: （注） | C41: １． | D41: 北海道運輸局資料による
A44: ※改良進捗状況について、平成26年3月31日現在分から他の調査と同じく6年分の記載とした。（26年10月21日変更）
A45: ※立体交差の進捗率は指定箇所がある場合は記載すること。(平成26年3月31日現在は無かったためハイフンとした)
A46: ↓赤字は対象年を過ぎた踏切、黄色字は新たに指定されて対象年に含まれない踏切。（コマチップは２１～２６年度分に入れるから注意）
A47: （遮断機） | S47: （構造改良）
A48: 指定年度 | B48: 完了年度 | C48: 線区 | D48: 踏切名 | S48: 指定年度 | U48: 完了年度 | W48: 線区 | Y48: 踏切名
A49: 18 | B49: 18 | C49: 室蘭線 | D49: 三好前通り | S49: 19 | U49: 21 | W49: 石北線 | Y49: 野上通り
A50: 19 | B50: 19 | C50: 石北線 | D50: 西２丁目 | S50: 20 | U50: 20 | W50: 釧網線 | Y50: 鱒浦隧道
A51: 19 | B51: 19 | C51: 宗谷線 | D51: 永山町８丁目 | S51: 20 | U51: 21 | W51: 留萌線 | Y51: 深川山１線
A52: 19 | B52: 19 | C52: 宗谷線 | D52: 永山町１１丁目 | S52: 20 | U52: 24 | W52: 根室線 | Y52: 幾寅原野東９号
A53: 26 | B53: 未完了 | C53: 日高線 | D53: コマチップ | S53: 20 | U53: 23 | W53: 函館線 | Y53: 旧国道
S54: 20 | U54: 22 | W54: 宗谷線 | Y54: 南２丁目
A55: （支障報知） | S55: 23 | U55: 未完了 | W55: 江差線 | Y55: 七重浜道路
A56: 指定年度 | B56: 完了年度 | C56: 線区 | D56: 踏切名
A57: 18 | B57: 18 | C57: 函館線 | D57: 札幌製紙 | S57: （立体交差）
A58: 19 | B58: 19 | C58: 函館線 | D58: 小屋敷 | S58: 指定年度 | U58: 完了年度 | W58: 線区 | Y58: 踏切名
A59: 20 | B59: 20 | C59: 函館線 | D59: 星置 | S59: 19 | U59: 23 | W59: 函館線 | Y59: 国道
A60: 20 | B60: 21 | C60: 函館線 | D60: 山口街道踏切 | S60: 19 | U60: 23 | W60: 函館線 | Y60: ６丁目
A61: 23 | B61: 未完了 | C61: 函館線 | D61: 銭函東部 | S61: 19 | U61: 22 | W61: 宗谷線 | Y61: 永山通り６丁目
A62: 23 | B62: 未完了 | C62: 函館線 | D62: 発寒小学校 | S62: 19 | U62: 20 | W62: 函館線 | Y62: 団地
A63: 23 | B63: 24 | C63: 千歳線 | D63: 南の里２号線 | S63: 19 | U63: 20 | W63: 函館線 | Y63: 北郷通り
A64: 23 | B64: 23 | C64: 千歳線 | D64: 東７線 | S64: 19 | U64: 19 | W64: 函館線 | Y64: 14号線
A65: 23 | B65: 23 | C65: 宗谷線 | D65: 永山町７丁目 | S65: 19 | U65: 20 | W65: 石北線 | Y65: 西8号線
S66: 19 | U66: 20 | W66: 根室線 | Y66: 幕別町9丁目
A67: （高規格）
A68: 指定年度 | B68: 完了年度 | C68: 線区 | D68: 踏切名
A69: 23 | B69: 23 | C69: 函館線 | D69: 第１４号線

Sheet 技２．（１）
A1: ２．自 動 車
A3: （１） 自動車特定整備事業の状況
X4: （令和7年3月31日現在）
C5: 項 目 | D5: 認 証 工 場 数 | K5: 認 定 工 場 数 | R5: 指 定 工 場 数
A6: 支局別
A7: 札 幌 | D7: 1661 | K7: 47 | R7: 698
A8: 函 館 | D8: 389 | K8: 18 | R8: 158
A9: 旭 川 | D9: 677 | K9: 39 | R9: 252
A10: 室 蘭 | D10: 413 | K10: 13 | R10: 184
A11: 釧 路 | D11: 336 | K11: 17 | R11: 152
A12: 帯 広 | D12: 346 | K12: 30 | R12: 140
A13: 北 見 | D13: 367 | K13: 17 | R13: 168
A14: 局 計 | D14: =SUM(D7:J13) -> 4189 | K14: =SUM(K7:Q13) -> 181 | R14: =SUM(R7:X13) -> 1752
A15: 全国計 | D15: 92412 | K15: 2516 | R15: 29870
A17: （注） | C17: １．北海道運輸局資料による

Sheet 技２．（２）ア・イ
A2: （２） 全道の交通事故発生状況
B4: ア 交通事故件数の推移
AG24: =G29 -> 元 | AH24: =J29 -> ２ | AI24: =M29 -> 3 | AJ24: =P29 -> 4 | AK24: =S29 -> 5 | AL24: =V29 -> 6
AF25: 発生件数 | AG25: 100 | AH25: =K32 -> 82.31370505 | AI25: =N32 -> 86.54507556 | AJ25: =Q32 -> 88.13965607 | AK25: =T32 -> 94.65346535 | AL25: =W32 -> 91.1203752
AF26: 死者数 | AG26: 100 | AH26: =K34 -> 94.73684211 | AI26: =N34 -> 78.94736842 | AJ26: =Q34 -> 75.65789474 | AK26: =T34 -> 86.18421053 | AL26: =W34 -> 68.42105263
AF27: 傷者数 | AG27: 100 | AH27: =K36 -> 81.86673909 | AI27: =N36 -> 86.89118233 | AJ27: =Q36 -> 88.58410284 | AK27: =T36 -> 95.97139236 | AL27: =W36 -> 93.21926489
AF28: 自動車保有台数 | AG28: 100 | AH28: =K38 -> 99.94568169 | AI28: =N38 -> 99.97284085 | AJ28: =Q38 -> 100.1901141 | AK28: =T38 -> 100.5160239 | AL28: =W38 -> 100.3802281
D29: 暦 年 | G29: 元 | J29: ２ | M29: 3 | P29: 4 | S29: 5 | V29: 6
A30: 種 別
A31: 交通事故 | B31: 発 生 件 数 | G31: 9595 | J31: 7898 | M31: 8304 | P31: 8457 | S31: 9082 | V31: 8743
G32: ( | H32: 100 | I32: ) | J32: ( | K32: =J31/G31*100 -> 82.31370505 | L32: ) | M32: ( | N32: =M31/G31*100 -> 86.54507556 | O32: ) | P32: ( | Q32: =P31/G31*100 -> 88.13965607 | R32: ) | S32: ( | T32: =S31/G31*100 -> 94.65346535 | U32: ) | V32: ( | W32: =V31/G31*100 -> 91.1203752 | X32: )
B33: 死 者 数 （人） | G33: 152 | J33: 144 | M33: 120 | P33: 115 | S33: 131 | V33: 104
G34: ( | H34: 100 | I34: ) | J34: ( | K34: =J33/G33*100 -> 94.73684211 | L34: ) | M34: ( | N34: =M33/G33*100 -> 78.94736842 | O34: ) | P34: ( | Q34: =P33/G33*100 -> 75.65789474 | R34: ) | S34: ( | T34: =S33/G33*100 -> 86.18421053 | U34: ) | V34: ( | W34: =V33/G33*100 -> 68.42105263 | X34: )
B35: 傷 者 数 （人） | G35: 11046 | J35: 9043 | M35: 9598 | P35: 9785 | S35: 10601 | V35: 10297
G36: ( | H36: 100 | I36: ) | J36: ( | K36: =J35/G35*100 -> 81.86673909 | L36: ) | M36: ( | N36: =M35/G35*100 -> 86.89118233 | O36: ) | P36: ( | Q36: =P35/G35*100 -> 88.58410284 | R36: ) | S36: ( | T36: =S35/G35*100 -> 95.97139236 | U36: ) | V36: ( | W36: =V35/G35*100 -> 93.21926489 | X36: )
A37: 自動車保有台数（千台） | G37: 3682 | J37: 3680 | M37: 3681 | P37: 3689 | S37: 3701 | V37: 3696
A38: （各年１２月末） | G38: ( | H38: 100 | I38: ) | J38: ( | K38: =J37/G37*100 -> 99.94568169 | L38: ) | M38: ( | N38: =M37/G37*100 -> 99.97284085 | O38: ) | P38: ( | Q38: =P37/G37*100 -> 100.1901141 | R38: ) | S38: ( | T38: =S37/G37*100 -> 100.5160239 | U38: ) | V38: ( | W38: =V37/G37*100 -> 100.3802281 | X38: )
A39: 運転免許保有者数（千人） | G39: 3342 | J39: 3326 | M39: 3313 | P39: 3299 | S39: 3287 | V39: 3267
A40: （各年１２月末） | G40: ( | H40: 100 | I40: ) | J40: ( | K40: =J39/G39*100 -> 99.52124476 | L40: ) | M40: ( | N40: =M39/G39*100 -> 99.13225613 | O40: ) | P40: ( | Q40: =P39/G39*100 -> 98.7133453 | R40: ) | S40: ( | T40: =S39/G39*100 -> 98.35427887 | U40: ) | V40: ( | W40: =V39/G39*100 -> 97.75583483 | X40: )
A41: （注） | C41: １． 事故発生件数は北海道警察ホームページによる。
C42: ２． 死者数、傷者数、運転免許保有者数は、北海道警察資料「北斗の安全」による。
C43: ３． 自動車保有台数は、北海道運輸局資料による
C44: ="４． グラフ及び（ ）内は、令和"&G29&"年を１００として表したもの" -> ４． グラフ及び（ ）内は、令和元年を１００として表したもの
B46: イ 事業用自動車重大事故件数の推移
AB73: =G74 -> 元 | AC73: =J74 -> ２ | AD73: =M74 -> 3 | AE73: =P74 -> 4 | AF73: =S74 -> 5 | AG73: =V74 -> 6
D74: 暦 年 | G74: =$G$29 -> 元 | J74: =$J$29 -> ２ | M74: =$M$29 -> 3 | P74: =$P$29 -> 4 | S74: =$S$29 -> 5 | V74: =$V$29 -> 6 | AA74: 発生件数 | AB74: 100 | AC74: =K77 -> 82.88770053 | AD74: =N77 -> 84.49197861 | AE74: =Q77 -> 62.56684492 | AF74: =T77 -> 74.3315508 | AG74: =W77 -> 78.60962567
A75: 種 別 | AA75: 死者数 | AB75: 100 | AC75: =K79 -> 102.6315789 | AD75: =N79 -> 60.52631579 | AE75: =Q79 -> 55.26315789 | AF75: =Q79 -> 55.26315789 | AG75: =W79 -> 65.78947368
A76: 交通事故 | B76: 発 生 件 数 | G76: 187 | J76: 155 | M76: 158 | P76: 117 | S76: 139 | V76: 147 | AA76: 傷者数 | AB76: 100 | AC76: =K81 -> 59.65665236 | AD76: =N81 -> 80.25751073 | AE76: =Q81 -> 42.91845494 | AF76: =T81 -> 64.3776824 | AG76: =W81 -> 60.51502146
G77: ( | H77: 100 | I77: ) | J77: ( | K77: =J76/G76*100 -> 82.88770053 | L77: ) | M77: （ | N77: =M76/G76*100 -> 84.49197861 | O77: ） | P77: （ | Q77: =P76/G76*100 -> 62.56684492 | R77: ） | S77: （ | T77: =S76/G76*100 -> 74.3315508 | U77: ） | V77: （ | W77: =V76/G76*100 -> 78.60962567 | X77: ） | AA77: 事業用自動車台数 | AB77: 100 | AC77: =K83 -> 99.49777423 | AD77: =N83 -> 99.32656089 | AE77: =Q83 -> 98.57322223 | AF77: =T83 -> 98.63600046 | AG77: =W83 -> 98.77411254
B78: 死 者 数 （人） | G78: 38 | J78: 39 | M78: 23 | P78: 21 | S78: 33 | V78: 25
G79: ( | H79: 100 | I79: ) | J79: ( | K79: =J78/G78*100 -> 102.6315789 | L79: ) | M79: （ | N79: =M78/G78*100 -> 60.52631579 | O79: ） | P79: （ | Q79: =P78/G78*100 -> 55.26315789 | R79: ） | S79: （ | T79: =S78/G78*100 -> 86.84210526 | U79: ） | V79: （ | W79: =V78/G78*100 -> 65.78947368 | X79: ）
B80: 傷 者 数 （人） | G80: 233 | J80: 139 | M80: 187 | P80: 100 | S80: 150 | V80: 141
G81: ( | H81: 100 | I81: ) | J81: ( | K81: =J80/G80*100 -> 59.65665236 | L81: ) | M81: （ | N81: =M80/G80*100 -> 80.25751073 | O81: ） | P81: （ | Q81: =P80/G80*100 -> 42.91845494 | R81: ） | S81: （ | T81: =S80/G80*100 -> 64.3776824 | U81: ） | V81: （ | W81: =V80/G80*100 -> 60.51502146 | X81: ）
A82: 事業用自動車台数（台） | G82: 87610 | J82: 87170 | M82: 87020 | P82: 86360 | S82: 86415 | V82: 86536
A83: （各年１２月末） | G83: ( | H83: 100 | I83: ) | J83: ( | K83: =J82/G82*100 -> 99.49777423 | L83: ) | M83: （ | N83: =M82/G82*100 -> 99.32656089 | O83: ） | P83: （ | Q83: =P82/G82*100 -> 98.57322223 | R83: ） | S83: （ | T83: =S82/G82*100 -> 98.63600046 | U83: ） | V83: （ | W83: =V82/G82*100 -> 98.77411254 | X83: ）
A84: （注） | C84: １． 事故発生件数、死者数、傷者数及び事業用自動車台数は、北海道運輸局資料による
C85: ="２． グラフ及び（ ）内は、令和"&G74&"年を１００として表したもの" -> ２． グラフ及び（ ）内は、令和元年を１００として表したもの
C86: ３． 事業用自動車台数は、被けん引自動車及び大型特殊自動車を除いた数

Sheet 技２．（２）ウ
B2: ウ 支局別事業用自動車の重大事故件数の推移
E4: 暦年 | G4: 元 | H4: ２ | I4: 3 | J4: 4 | K4: 5 | L4: 6
A5: 支局 | C5: 業態
A6: 札 幌 | C6: バ ス | G6: 182 | H6: 131 | I6: 147 | J6: 181 | K6: 187 | L6: 251
C7: ハイタク | G7: 46 | H7: 13 | I7: 22 | J7: 14 | K7: 27 | L7: 25
C8: トラック | G8: 49 | H8: 39 | I8: 41 | J8: 36 | K8: 45 | L8: 34
C9: 計 | G9: 277 | H9: 183 | I9: 210 | J9: 231 | K9: 259 | L9: =SUM(L6:L8) -> 310
A10: 函 館 | C10: バ ス | G10: 3 | H10: 10 | I10: 4 | J10: 6 | K10: 8 | L10: 8
C11: ハイタク | G11: 1 | H11: 1 | I11: 3 | J11: 2 | K11: 1 | L11: 3
C12: トラック | G12: 8 | H12: 20 | I12: 11 | J12: 7 | K12: 7 | L12: 9
C13: 計 | G13: 12 | H13: 31 | I13: 18 | J13: 15 | K13: 16 | L13: =SUM(L10:L12) -> 20
A14: 旭 川 | C14: バ ス | G14: 8 | H14: 5 | I14: 13 | J14: 15 | K14: 10 | L14: 10
C15: ハイタク | G15: 3 | H15: 4 | I15: 3 | J15: 1 | K15: 1 | L15: 4
C16: トラック | G16: 18 | H16: 17 | I16: 12 | J16: 18 | K16: 23 | L16: 23
C17: 計 | G17: 29 | H17: 26 | I17: 28 | J17: 34 | K17: 34 | L17: =SUM(L14:L16) -> 37
A18: 室 蘭 | C18: バ ス | G18: 8 | H18: 8 | I18: 13 | J18: 12 | K18: 7 | L18: 11
C19: ハイタク | G19: 2 | H19: 1 | I19: 1 | J19: 3 | K19: 1 | L19: 0
C20: トラック | G20: 19 | H20: 15 | I20: 16 | J20: 11 | K20: 11 | L20: 23
C21: 計 | G21: 29 | H21: 24 | I21: 30 | J21: 26 | K21: 19 | L21: =SUM(L18:L20) -> 34
A22: 釧 路 | C22: バ ス | G22: 4 | H22: 2 | I22: 0 | J22: 1 | K22: 2 | L22: 4
C23: ハイタク | G23: 2 | H23: 2 | I23: 5 | J23: 3 | K23: 0 | L23: 0
C24: トラック | G24: 12 | H24: 14 | I24: 16 | J24: 9 | K24: 10 | L24: 11
C25: 計 | G25: 18 | H25: 18 | I25: 21 | J25: 13 | K25: 12 | L25: =SUM(L22:L24) -> 15
A26: 帯 広 | C26: バ ス | G26: 4 | H26: 2 | I26: 6 | J26: 3 | K26: 6 | L26: 4
C27: ハイタク | G27: 0 | H27: 1 | I27: 0 | J27: 1 | K27: 1 | L27: 1
C28: トラック | G28: 14 | H28: 9 | I28: 18 | J28: 9 | K28: 18 | L28: 23
C29: 計 | G29: 18 | H29: 12 | I29: 24 | J29: 13 | K29: 25 | L29: =SUM(L26:L28) -> 28
A30: 北 見 | C30: バ ス | G30: 2 | H30: 2 | I30: 1 | J30: 3 | K30: 3 | L30: 0
C31: ハイタク | G31: 0 | H31: 2 | I31: 0 | J31: 0 | K31: 0 | L31: 1
C32: トラック | G32: 5 | H32: 7 | I32: 6 | J32: 7 | K32: 4 | L32: 4
C33: 計 | G33: 7 | H33: 11 | I33: 7 | J33: 10 | K33: 7 | L33: =SUM(L30:L32) -> 5
A34: 局 計 | C34: バ ス | G34: 211 | H34: 160 | I34: 184 | J34: 221 | K34: 223 | L34: =L6+L10+L18+L26+L22+L30+L14 -> 288
C35: ハイタク | G35: 54 | H35: 24 | I35: 34 | J35: 24 | K35: 31 | L35: =L7+L11+L19+L27+L23+L31+L15 -> 34
C36: トラック | G36: 125 | H36: 121 | I36: 120 | J36: 97 | K36: 118 | L36: =L8+L12+L20+L28+L24+L32+L16 -> 127
C37: 計 | G37: 390 | H37: 305 | I37: 338 | J37: 342 | K37: 372 | L37: =SUM(L34:L36) -> 449
A39: （注） | C39: １．北海道運輸局資料による

Sheet 技２．（３）
A1: （３） 自動車事故対策における適性診断受診状況
C3: バス | E3: ハイヤー タクシー | G3: 個人 タクシー | I3: トラック | K3: 自家用 | M3: 計
A4: 2 | B4: 任意診断 | C4: -9 | D4: 1914 | F4: 249 | H4: 199 | I4: -10 | J4: 8882 | K4: -1 | L4: 678 | M4: -20 | N4: 11922
B5: 義務診断 | D5: 784 | F5: 2868 | H5: 281 | J5: 7149 | L5: 180 | N5: 11262
A6: 3 | B6: 任意診断 | C6: -10 | D6: 1690 | E6: -4 | F6: 170 | H6: 142 | I6: -7 | J6: 7313 | K6: -1 | L6: 677 | M6: -22 | N6: 9992
B7: 義務診断 | D7: 682 | F7: 2166 | H7: 247 | J7: 6123 | L7: 168 | N7: 9386
A8: 4 | B8: 任意診断 | C8: -3 | D8: 1855 | E8: -1 | F8: 125 | H8: 122 | I8: -7 | J8: 7364 | K8: -1 | L8: 738 | M8: -12 | N8: 10204
B9: 義務診断 | D9: 900 | F9: 2330 | H9: 263 | J9: 6188 | L9: 150 | N9: 9831
A10: 5 | B10: 任意診断 | C10: -3 | D10: 1616 | E10: -1 | F10: 177 | H10: 145 | I10: -16 | J10: 7650 | K10: -2 | L10: 745 | M10: -22 | N10: 10333
B11: 義務診断 | D11: 1078 | F11: 3032 | H11: 253 | J11: 6600 | L11: 235 | N11: 11198
A12: 6 | B12: 任意診断 | C12: -3 | D12: 1513 | F12: 138 | H12: 137 | I12: -16 | J12: 7432 | K12: -2 | L12: 750 | M12: =SUM(C12,E12,G12,I12,K12) -> -21 | N12: =D12+F12+H12+J12+L12 -> 9970
B13: 義務診断 | D13: 1125 | F13: 3311 | H13: 245 | J13: 6801 | L13: 189 | N13: =D13+F13+H13+J13+L13 -> 11671
A15: （注） | C15: １． 独立行政法人自動車事故対策機構資料による
C16: ２． 任意診断欄は、一般診断及び特別診断の合計
C17: （ ）内は、特別診断受診者数で内数
C18: ３． 義務診断欄は、初任診断、適齢診断、特定診断Ⅰ・Ⅱの合計

Sheet 技２．（４）（５）
A2: （４） 支局別・事業者別運行管理者数
Y3: （令和7年3月31日現在）
C4: 業態 | D4: 旅客 | N4: 貨物 | X4: 総計
A5: 支局別 | D5: 乗合 | F5: 貸切 | H5: 乗用 | J5: 特定 | L5: 計 | N5: 特積 | P5: その他 | R5: 特定 | T5: 特定二種 | V5: 計
A6: 札幌 | D6: 326 | F6: 558 | H6: 740 | J6: 25 | L6: =SUM(D6:K6) -> 1649 | N6: 434 | P6: 4165 | R6: 24 | T6: 1 | V6: =SUM(N6:U6) -> 4624 | X6: =L6+V6 -> 6273
A7: 函館 | D7: 69 | F7: 63 | H7: 93 | J7: 3 | L7: 228 | N7: 124 | P7: 661 | R7: 4 | T7: 0 | V7: 789 | X7: 1017
A8: 旭川 | D8: 137 | F8: 39 | H8: 131 | J8: 6 | L8: 313 | N8: 33 | P8: 1234 | R8: 5 | T8: 2 | V8: 1274 | X8: 1587
A9: 室蘭 | D9: 59 | F9: 73 | H9: 83 | J9: 6 | L9: 221 | N9: 106 | P9: 919 | R9: 1 | T9: 1 | V9: 1027 | X9: 1248
A10: 釧路 | D10: 25 | F10: 40 | H10: 63 | J10: 4 | L10: 132 | N10: 80 | P10: 648 | R10: 8 | T10: 0 | V10: 736 | X10: 868
A11: 帯広 | D11: 35 | F11: 24 | H11: 41 | J11: 5 | L11: 105 | N11: 86 | P11: 718 | R11: 3 | T11: 0 | V11: 807 | X11: 912
A12: 北見 | D12: 49 | F12: 40 | H12: 48 | J12: 0 | L12: 137 | N12: 27 | P12: 634 | R12: 3 | T12: 0 | V12: 664 | X12: 801
A13: 局計 | D13: =SUM(D6:E12) -> 700 | F13: =SUM(F6:G12) -> 837 | H13: =SUM(H6:I12) -> 1199 | J13: =SUM(J6:K12) -> 49 | L13: =SUM(L6:M12) -> 2785 | N13: =SUM(N6:O12) -> 890 | P13: =SUM(P6:Q12) -> 8979 | R13: =SUM(R6:S12) -> 48 | T13: =SUM(T6:U12) -> 4 | V13: =SUM(V6:W12) -> 9921 | X13: =SUM(X6:Y12) -> 12706
A15: （注） | C15: １．北海道運輸局資料による
A17: （５） 整備管理者選任状況
T18: =Y3 -> （令和7年3月31日現在）
F19: 届出数 | I19: 事 業 者 数 | M19: 選任届出本拠数 | Q19: 整備管理者数
A20: 事業の種類
A21: 事業用 | D21: バ ス | I21: 338 | M21: 441 | Q21: 934
D22: ハイ・タク | I22: 304 | M22: 345 | Q22: 684
D23: ト ラ ッ ク | I23: 4474 | M23: 5072 | Q23: 6297
D24: 軽自動車（トラック） | I24: 117 | M24: 164 | Q24: 179
A25: 自家用 | D25: レンタカー | I25: 623 | M25: 945 | Q25: 1168
D26: そ の 他 | I26: 5123 | M26: 5641 | Q26: 6102
A27: 計 | I27: =SUM(I21:L26) -> 10979 | M27: =SUM(M21:P26) -> 12608 | Q27: =SUM(Q21:T26) -> 15364
A29: （注） | C29: １．北海道運輸局資料による

Sheet 技２．（６）
A2: （６） 自動車騒音に係る環境基準（道路に面する地域）
A4: 地域の区分 | K4: 時間の区分
K5: 昼 間 （６時～２２時） | V5: 夜 間 （２２時～６時）
A6: Ａ地域のうち２車線以上の車線を | K6: ６０デシベル以下 | V6: ５５デシベル以下
A8: 有する道路に面する地域
A9: Ｂ地域のうち２車線以上の車線を | K9: ６５デシベル以下 | V9: ６０デシベル以下
A10: 有する道路に面する地域及びＣ
A11: 地域のうち車線を有する道路に
A12: 面する地域
A13: 幹線交通を担う道路に近接する空間 | K13: ７０デシベル以下 | V13: ６５デシベル以下
B14: （屋内指針の特例）
A15: 幹線交通を担う道路に近接する空間内に立地する個別の住居等において騒音の影響を受けやすい面の窓を
A16: 主として閉めた生活が営まれていると認められるときは、屋内へ透過する騒音に係る基準（昼間にあっては４５
A17: デシベル以下、夜間にあっては４０デシベル以下）によることができる。
A18: （注） | C18: １．北海道環境生活部資料による
C19: Ａ地域 | E19: ： | F19: 専ら住居の用に供される地域
C20: Ｂ地域 | E20: ： | F20: 主として住居の用に供される地域
C21: Ｃ地域 | E21: ： | F21: 相当数の住居と併せて商業、工業等の用に供される地域
C22: 幹線交通を担う道路 | I22: ： | J22: 高速自動車国道、一般国道、道道、市町村道（市町村道にあっては４車線以上
J23: の区間）、自動車専用道路
C24: 幹線交通を担う道路に近接する空間 | N24: ： | O24: 幹線交通を担う道路が２車線以下の場合にあっては道路端か
O25: ら１５メートル以内の範囲にある地域、２車線を超える場合にあ
O26: っては道路端から２０メートル以内の範囲にある地域

Sheet 技２．（７）
A1: （７） 「スパイクタイヤ粉じんの発生の防止に関する法律」に基づく指定
C3: 指 定 市 町 村 | D3: 計
A4: 空 知 総合振興局 | C4: 夕張市、岩見沢市（旧北村区域除く）、美唄市、三笠市、歌志内市、芦別市、赤平市、 | D4: 20
C5: 滝川市、砂川市、深川市、上砂川町、奈井江町、由仁町、長沼町、栗山町、月形町、
C6: 浦臼町、新十津川町、妹背牛町、雨竜町
A7: 石狩振興局 | C7: 札幌市、江別市、千歳市、恵庭市、北広島市、石狩市（旧石狩市区域）、当別町 | D7: 7
A8: 後 志総合振興局 | C8: 小樽市、余市町、仁木町、泊村、岩内町、共和町、倶知安町、喜茂別町、留寿都村 | D8: 9
A9: 胆 振総合振興局 | C9: 室蘭市、苫小牧市、登別市、伊達市（旧伊達市区域）、洞爺湖町（旧虻田町区域）、 | D9: 10
C10: 豊浦町、白老町、安平町、厚真町、むかわ町（旧鵡川町区域）
A11: 日高振興局 | C11: 平取町、日高町（旧門別町区域）、新冠町、新ひだか町、浦河町、様似町 | D11: 6
A12: 渡 島総合振興局 | C12: 函館市（旧函館市区域）、木古内町、北斗市、七飯町、森町（旧森町区域）、 | D12: 7
C13: 八雲町（旧八雲町区域）、長万部町
A14: 檜山振興局 | C14: 江差町、厚沢部町 | D14: 2
A15: 上 川総合振興局 | C15: 旭川市、士別市（旧士別市区域）、名寄市、富良野市、鷹栖町、東神楽町、当麻町、 | D15: 17
C16: 比布町、愛別町、上川町、東川町、美瑛町、上富良野町、中富良野町、和寒町、
C17: 剣淵町、美深町
A18: 留萌振興局 | C18: 留萌市、小平町、羽幌町 | D18: 3
A19: 宗 谷総合振興局 | C19: 稚内市 | D19: 1
A20: オホーツク 総合振興局 | C20: 北見市（旧常呂町区域除く）、網走市、紋別市、大空町（旧女満別町区域）、美幌町、 | D20: 8
C21: 遠軽町（旧遠軽町区域）、湧別町（旧上湧別町区域）、興部町
A22: 十 勝総合振興局 | C22: 帯広市、芽室町、清水町、音更町、幕別町（旧幕別町区域）、池田町、足寄町、豊頃町、 | D22: 10
C23: 浦幌町、大樹町
A24: 釧 路総合振興局 | C24: 釧路市（旧阿寒町区域除く）、釧路町、厚岸町、標茶町、弟子屈町、白糠町 | D24: 6
A25: 根室振興局 | C25: 根室市、中標津町 | D25: 2
A26: 計 | D26: =SUM(D4:D25) -> 108
A28: （注） | C28: １．北海道環境生活部資料による
C29: ２．上記を除く道内全域については、「北海道スパイクタイヤ対策条例」により
C30: スパイクタイヤの使用が制限されている

Sheet 技３．
A2: ３．船 舶
A4: 海難発生状況の推移
C6: 区 別 | D6: 船 舶 海 難 （ 隻 ）
C7: 暦 年 | D7: ２ | E7: 3 | F7: 4 | G7: 5 | H7: 6
A8: 種類別
A9: 衝突 | D9: 13 | E9: 18 | F9: 21 | G9: 13 | H9: 11
A10: 単独衝突 | D10: 9 | E10: 5 | F10: 7 | G10: 10 | H10: 3
A11: 乗揚 | D11: 8 | E11: 12 | F11: 4 | G11: 9 | H11: 4
A12: 転覆 | D12: 5 | E12: 5 | F12: 11 | G12: 2 | H12: 15
A13: 浸水 | D13: 6 | E13: 11 | F13: 6 | G13: 4 | H13: 5
A14: 火災 | D14: 5 | E14: 3 | F14: 2 | G14: 3 | H14: 6
A15: 爆発 | D15: 1 | E15: 0 | F15: 0 | G15: 0 | H15: 0
A16: 運航不能 | D16: 32 | E16: 32 | F16: 40 | G16: 48 | H16: 37
A17: 推進器・舵障害 | D17: 9 | E17: 6 | F17: 12 | G17: 6 | H17: 9
A18: 機関故障 | D18: 5 | E18: 10 | F18: 14 | G18: 17 | H18: 10
A19: 無人漂流 | D19: 10 | E19: 7 | F19: 5 | G19: 8 | H19: 5
A20: その他 | D20: 8 | E20: 9 | F20: 9 | G20: 17 | H20: 13
A21: その他（船位喪失、船体行方不明等） | D21: 0 | E21: 2 | F21: 1 | G21: 0 | H21: 2
A22: 計 | D22: 79 | E22: 88 | F22: 92 | G22: 89 | H22: =SUM(H9:H16,H21) -> 83
C26: 区別 | D26: 事 故 者 数 （ 人 ）
C27: 暦年 | D27: =$D$7 -> ２ | E27: =$E$7 -> 3 | F27: =$F$7 -> 4 | G27: =$G$7 -> 5 | H27: =$H$7 -> 6
A28: 内容別
A29: 船舶海難による死亡・行方不明者 | D29: 3 | E29: 4 | F29: 29 | G29: 0 | H29: 3
A30: 船舶海難によらない乗船者の人身事故 | D30: 71 | E30: 82 | F30: 78 | G30: 78 | H30: =SUM(H31:H34) -> 72
A31: 海中転落 | D31: 14 | E31: 9 | F31: 12 | G31: 11 | H31: 10
A32: 負傷 | D32: 30 | E32: 46 | F32: 49 | G32: 35 | H32: 41
A33: 病気 | D33: 24 | E33: 27 | F33: 16 | G33: 24 | H33: 21
A34: その他 | D34: 3 | E34: 0 | F34: 1 | G34: 8 | H34: 0
A35: 船舶海難によらない死亡・行方不明者 | D35: 17 | E35: 15 | F35: 11 | G35: 20 | H35: 13
A37: （注） | B37: １． 第一管区海上保安本部資料による
B38: ２． 船舶海難隻数は、「要救助海難」及び「不要救助（救助を必要としなかったもの）海難」の合計値
B39: ３． 衝突とは、他の船舶との接触により損傷を生じたもの
B40: ４． 単独衝突とは、物件（岸壁、防波堤、漂流物等）との接触により損傷を生じたもの
B41: ５． 平成３０年に海上保安庁で海難定義 ･ 海難種類の見直しがあったことから、それに合わせた記載としている

Sheet 技４．
A1: ４．航 空
A3: 道内の航空事故発生状況の推移
D5: 区分 | F5: 発生件数 | G5: 航 空 事 故 の 内 訳
G6: 人 員 の 損 傷 程 度 | K6: 主たる原因
B7: 航空機の | G7: 死亡 | H7: 重傷 | I7: 軽傷 | J7: 小計 | K7: 操縦者 の過失 | L7: 整備の 過失 | M7: 機材の 故障等 | N7: その他 | O7: 調査中
C8: 種類別
A9: 年
A10: 元 | B10: 大型飛行機 | J10: 0
B11: 小型 | C11: 飛行機 | J11: 0
C12: 回転翼 | J12: 0
C13: 滑空機 | J13: 0
C14: その他 | J14: 0
C15: 小 計 | F15: 0 | G15: 0 | H15: 0 | I15: 0 | J15: 0 | K15: 0 | L15: 0 | M15: 0 | N15: 0 | O15: 0
B16: 合計 | F16: 0 | G16: 0 | H16: 0 | I16: 0 | J16: 0 | K16: 0 | L16: 0 | M16: 0 | N16: 0 | O16: 0
A17: ２ | B17: 大型飛行機 | J17: 0
B18: 小型 | C18: 飛行機 | F18: 1 | H18: 2 | J18: 2 | O18: 1
C19: 回転翼 | J19: 0
C20: 滑空機 | J20: 0
C21: その他 | J21: 0
C22: 小 計 | F22: 1 | G22: 0 | H22: 2 | I22: 0 | J22: 2 | K22: 0 | L22: 0 | M22: 0 | N22: 0 | O22: 1
B23: 合計 | F23: 1 | G23: 0 | H23: 2 | I23: 0 | J23: 2 | K23: 0 | L23: 0 | M23: 0 | N23: 0 | O23: 1
A24: 3 | B24: 大型飛行機 | J24: 0
B25: 小型 | C25: 飛行機 | J25: 0
C26: 回転翼 | J26: 0
C27: 滑空機 | F27: 2 | G27: 2 | H27: 2 | J27: 4 | O27: 2
C28: その他 | J28: 0
C29: 小 計 | F29: 2 | G29: 2 | H29: 2 | I29: 0 | J29: 4 | K29: 0 | L29: 0 | M29: 0 | N29: 0 | O29: 2
B30: 合計 | F30: 2 | G30: 2 | H30: 2 | I30: 0 | J30: 4 | K30: 0 | L30: 0 | M30: 0 | N30: 0 | O30: 2
A31: 4 | B31: 大型飛行機 | J31: 0
B32: 小型 | C32: 飛行機 | J32: 0
C33: 回転翼 | J33: 0
C34: 滑空機 | J34: 0
C35: その他 | F35: 1 | H35: 1 | J35: 1 | L35: 1
C36: 小 計 | F36: 1 | G36: 0 | H36: 1 | I36: 0 | J36: 1 | K36: 0 | L36: 1 | M36: 0 | N36: 0 | O36: 0
B37: 合計 | F37: 1 | G37: 0 | H37: 1 | I37: 0 | J37: 1 | K37: 0 | L37: 1 | M37: 0 | N37: 0 | O37: 0
A38: 5 | B38: 大型飛行機 | J38: 0
B39: 小型 | C39: 飛行機 | F39: 1 | J39: 0 | N39: 1
C40: 回転翼 | J40: 0
C41: 滑空機 | J41: 0
C42: その他 | J42: 0
C43: 小 計 | F43: 1 | G43: 0 | H43: 0 | I43: 0 | J43: 0 | K43: 0 | L43: 0 | M43: 0 | N43: 1 | O43: 0
B44: 合計 | F44: 1 | G44: 0 | H44: 0 | I44: 0 | J44: 0 | K44: 0 | L44: 0 | M44: 0 | N44: 1 | O44: 0
A45: 6 | B45: 大型飛行機
B46: 小型 | C46: 飛行機
C47: 回転翼
C48: 滑空機 | F48: 1 | I48: 1 | J48: 1 | K48: 1
C49: その他
C50: 小 計 | F50: =SUM(F46:F49) -> 1 | G50: =SUM(G46:G49) -> 0 | H50: =SUM(H46:H49) -> 0 | I50: =SUM(I46:I49) -> 1 | J50: =SUM(G50:I50) -> 1 | K50: =SUM(K46:K49) -> 1 | L50: =SUM(L46:L49) -> 0 | M50: =SUM(M46:M49) -> 0 | N50: =SUM(N46:N49) -> 0 | O50: =SUM(O46:O49) -> 0
B51: 合計 | F51: =F45+F50 -> 1 | G51: =G45+G50 -> 0 | H51: =H45+H50 -> 0 | I51: =I45+I50 -> 1 | J51: =SUM(G51:I51) -> 1 | K51: =K45+K50 -> 1 | L51: =L45+L50 -> 0 | M51: =M45+M50 -> 0 | N51: =N45+N50 -> 0 | O51: =O45+O50 -> 0
A53: （注） | C53: １． 運輸安全委員会資料による
C54: ２． 航空機の種類別の「その他」は、超軽量動力機
